[Event "Czech Open-Rapid 2022"]
[Site "Pardubice"]
[Date "2022.07.20"]
[Round "2.4"]
[White "Ret, Adam Josef"]
[Black "Babula, Vlastimil sr"]
[Result "0-1"]
[ECO "A46"]
[WhiteElo "2023"]
[BlackElo "2556"]
[Annotator "TA"]
[PlyCount "106"]
[EventDate "2022.07.20"]
[EventType "swiss"]
[EventCountry "CZE"]
[SourceTitle "playchess.com"]
[Source "ChessBase"]
[SourceQuality "1"]
[TimeControl "1200+10"]

{[%evp 17,106,8,6,11,48,43,44,17,20,18,23,0,11,-81,-84,-89,-79,-91,-87,-91,-86,-79,-61,-66,-59,-98,-69,-122,-111,-186,-186,-193,-192,-204,-197,-205,-195,-205,-202,-206,-206,-218,-218,-218,-218,-266,-265,-262,-264,-280,-270,-266,-268,-292,-281,-262,-218,-218,-218,-219,-218,-222,-222,-273,-284,-284,-218,-712,-242,-952,-868,-688,-631,-1532,-1486,-1511,-1444,-1420,-1376,-10350,-5369,-11152,-11152,-8315,-7948,-9795,-6506,-5622,-5428,-2899,-2087]} 1. d4 {[%emt 0:00:02]} Nf6 {[%emt 0:00:02]} 2. Nf3 {[%emt 0:00:02]} d6 {[%emt 0:00:06]} 3. e3 {[%emt 0:00:03]} g6 {[%emt 0:00:07]} 4. b3 {[%emt 0:00:02]} Bg7 {[%emt 0:00:14]} 5. Bb2 {[%emt 0:00:01]} O-O {[%emt 0:00:24]} 6. Be2 {[%emt 0:00:02]} e6 {[%emt 0:00:23]} 7. O-O {[%emt 0:00:04]} b6 {[%emt 0:00:02]} 8. c4 {[%emt 0:00:09]} Bb7 {[%emt 0:00:11]} 9. Nc3 {[%emt 0:00:02]} Nbd7 {[%emt 0:00:10]} 10. Qc2 {[%emt 0:00:02] [#] E61: King's Indian: Early deviations for White, including Smyslov System.} Nh5 $146 {[%emt 0:00:07]} ({Predecessor:} 10... c5 11. Rad1 Qe7 12. Rfe1 a6 13. e4 cxd4 14. Nxd4 Rfd8 15. Bf1 Nc5 16. g3 Rac8 17. Bg2 h5 {1-0 (38) Nakamura,H (2736)-Vachier Lagrave,M (2784) Chess.com INT 2020}) 11. Nd2 {[%emt 0:00:18]} f5 {[%emt 0:00:04]} 12. f4 {[%emt 0:00:28] White is slightly better.} Nhf6 {[%emt 0:00:31]} 13. Bf3 {[%emt 0:00:18]} c6 {[%emt 0:00:12]} 14. g3 {[%emt 0:00:15]} e5 {[%emt 0:02:42]} 15. d5 {[%emt 0:01:35]} (15. b4 $11) 15... cxd5 $17 {[%emt 0:01:16]} 16. Nxd5 {[%emt 0:00:23]} Nxd5 {[%emt 0:00:06]} 17. Bxd5+ {[%emt 0:00:09]} Bxd5 {[%emt 0:00:03]} 18. cxd5 {[%emt 0:00:02]} Rc8 {[%emt 0:00:11]} 19. Qd1 {[%emt 0:00:25]} b5 {[%emt 0:00:29]} 20. Nf3 {[%emt 0:00:14]} Qb6 {[%emt 0:00:08]} 21. Re1 {[%emt 0:01:52] Black keeps a firm grip on the game.} Rfe8 {[%emt 0:00:09]} 22. Kh1 {[%emt 0:00:17]} (22. Qd2 $15) 22... Nf6 {[%emt 0:00:50][%cal Bd7f6,Bf6e4,Be4f2][%mdl 32]} 23. b4 {[%emt 0:01:20]} (23. fxe5 $17 {is a better defense.} dxe5 24. Bxe5) 23... exf4 $19 {[%emt 0:06:05]} 24. exf4 {[%emt 0:00:43]} Ne4 {[%emt 0:00:18] [#] Hoping for ...Nf2+.} 25. Bd4 {[%emt 0:00:55]} Nf2+ {[%emt 0:01:08]} 26. Bxf2 {[%emt 0:00:12]} Qxf2 {[%emt 0:00:03]} 27. Rxe8+ {[%emt 0:00:55]} Rxe8 {[%emt 0:00:02]} 28. Qf1 {[%emt 0:00:27] Prevents Re1.} Re2 {[%emt 0:00:30]} 29. Rc1 {[%emt 0:00:38]} Qxf1+ {[%emt 0:00:06]} ({Resist} 29... Rxa2 30. Rc8+ Bf8 31. Qxf2 Rxf2 32. Ng5 $18 (32. Nd4 Kf7 $16)) 30. Rxf1 {[%emt 0:00:02]} Rxa2 {[%emt 0:00:03][%mdl 4096] Endgame KRB-KRN} 31. Rc1 {[%emt 0:00:13]} Ra1 {[%emt 0:00:08]} 32. Rxa1 {[%emt 0:00:12]} Bxa1 {[%emt 0:00:02] KB-KN} 33. Ne1 {[%emt 0:00:03]} Kf7 {[%emt 0:01:07]} 34. Kg2 {[%emt 0:00:06]} Ke7 {[%emt 0:00:01]} 35. Kf3 {[%emt 0:00:02]} Kd7 {[%emt 0:00:06]} 36. Ke3 {[%emt 0:00:03]} Kc7 {[%emt 0:00:25]} 37. Kd3 {[%emt 0:00:05]} Kb6 {[%emt 0:00:03]} 38. Nf3 {[%emt 0:00:11]} Bf6 {[%emt 0:00:42]} 39. Nd2 {[%emt 0:00:44]} a5 {[%emt 0:00:04][%cal Ba7a5,Ba5a4][%mdl 32]} 40. Nb3 {[%emt 0:00:11]} a4 {[%emt 0:00:12]} ({Don't blunder} 40... axb4 $2 41. Kc2 $19) 41. Nc1 {[%emt 0:00:08]} g5 {[%emt 0:00:14] White must now prevent ...h5.} 42. Ke3 $2 {[%emt 0:01:02]} (42. Kc2) 42... Kc7 $2 {[%emt 0:01:34]} (42... gxf4+ 43. gxf4 Bc3) 43. Kf3 $2 {[%emt 0:00:10]} (43. Kd3) 43... Kd7 {[%emt 0:00:21] Black is clearly winning.} 44. Na2 {[%emt 0:00:07]} Ke7 {[%emt 0:00:17] [#] Threatens to win with ...Kf7.} 45. h3 {[%emt 0:01:55]} Kf7 {[%emt 0:00:07]} 46. fxg5 {[%emt 0:02:18]} Bxg5 {[%emt 0:00:03]} 47. Nc3 {[%emt 0:00:00]} a3 {[%emt 0:00:15]} 48. h4 {[%emt 0:00:15]} Bd2 {[%emt 0:00:21]} 49. Na2 {[%emt 0:00:03]} h5 {[%emt 0:00:42]} 50. Ke2 {[%emt 0:00:06]} Bh6 {[%emt 0:00:04]} 51. Kd3 {[%emt 0:00:19]} Bg7 {[%emt 0:00:21] And now ...Be5 would win.} 52. Kc2 {[%emt 0:00:05]} Be5 {[%emt 0:00:08] Strongly threatening ...Bb2.} 53. Kb3 {[%emt 0:00:04]} Bb2 {[%emt 0:00:41] Weighted Error Value: White=0.77/Black=0.28 (precise)} 0-1

[Event "Czech Open-Rapid 2022"]
[Site "Pardubice"]
[Date "2022.07.20"]
[Round "2.5"]
[White "Plat, Vojtech"]
[Black "Bares, Jachym"]
[Result "1-0"]
[ECO "C63"]
[WhiteElo "2554"]
[BlackElo "2129"]
[Annotator "TA"]
[PlyCount "77"]
[EventDate "2022.07.20"]
[EventType "swiss"]
[EventCountry "CZE"]
[SourceTitle "playchess.com"]
[Source "ChessBase"]
[SourceQuality "1"]
[TimeControl "1200+10"]

{[%evp 20,77,79,57,62,65,59,49,76,52,79,79,70,50,63,47,173,158,214,220,213,239,224,229,246,237,218,206,200,154,330,325,316,329,344,243,326,317,327,320,414,413,427,239,762,670,835,608,1024,1038,1028,1020,1517,1501,1410,1300,1997,1772,1487,1000]} 1. e4 {[%emt 0:00:02]} e5 {[%emt 0:00:01]} 2. Nf3 {[%emt 0:00:01]} Nc6 {[%emt 0:00:01]} 3. Bb5 {[%emt 0:00:02]} f5 {[%emt 0:00:02]} 4. Nc3 {[%emt 0:00:03]} fxe4 {[%emt 0:00:01]} 5. Nxe4 {[%emt 0:00:01]} Nf6 {[%emt 0:00:01]} 6. Qe2 {[%emt 0:00:12]} d5 {[%emt 0:00:10]} 7. Nxf6+ {[%emt 0:00:12]} gxf6 {[%emt 0:00:05]} 8. d4 {[%emt 0:00:03]} Bg7 {[%emt 0:00:03]} 9. dxe5 {[%emt 0:00:06]} O-O {[%emt 0:00:03]} 10. e6 {[%emt 0:00:22]} Re8 {[%emt 0:00:01] is now debated instead of 10...Ne5.} 11. O-O {[%emt 0:00:06] White is more active.} (11. Bxc6 $6 bxc6 12. Be3 (12. Nd4 Qe7 $11) 12... Bxe6 $11) 11... Rxe6 {[%emt 0:00:45] C63: Ruy Lopez: Schliemann/Jaenisch Defence.} 12. Qd1 {[%emt 0:00:12]} Ne5 {[%emt 0:00:58] [#]} 13. Be2 $146 {[%emt 0:00:40][%cal Oc2c4]} (13. c4 $5) ({Predecessor:} 13. c3 Rb6 14. Be2 Bg4 15. Nd4 Bd7 16. Nb3 Ba4 17. Be3 Rd6 18. Qd4 Be8 19. Qh4 {1-0 (29) Pierrot,J (2397)-Gaztanaga,P (2042) Caba 2018}) 13... b6 {[%emt 0:01:24] White is slightly better.} 14. Bf4 {[%emt 0:00:10]} Bb7 {[%emt 0:00:13][%cal Od5d4]} 15. Nd4 {[%emt 0:00:05]} Re8 {[%emt 0:00:20]} 16. Bh5 {[%emt 0:00:13]} Ng6 {[%emt 0:01:54]} 17. Bg3 {[%emt 0:00:02]} c5 {[%emt 0:00:54]} ({Black should play} 17... Qd7 $1 $14) 18. Nf5 $18 {[%emt 0:00:02]} d4 {[%emt 0:00:28]} (18... Bc6 $16 19. Qg4 Re4) 19. Nd6 {[%emt 0:00:08]} Re7 {[%emt 0:00:58]} 20. Nxb7 {[%emt 0:00:09]} Rxb7 {[%emt 0:00:02]} 21. Bf3 {[%emt 0:00:01] This bishop pair is nice.} Rd7 {[%emt 0:00:15]} 22. Bxa8 {[%emt 0:00:03]} Qxa8 {[%emt 0:00:01]} 23. Qg4 {[%emt 0:00:04]} Qd5 {[%emt 0:00:10]} 24. Rfe1 {[%emt 0:00:28]} Kf7 $2 {[%emt 0:00:12] [#] Prevents Re8. Loses the game.} (24... f5 $16 25. Qg5 Qf7) 25. c4 {[%emt 0:00:25]} (25. Qe2 $6 Rd8 26. Rad1 Kg8 $18) 25... Qc6 {[%emt 0:00:21]} 26. Qh5 {[%emt 0:00:04]} ({Not} 26. Qe2 Rd8 27. Rad1 Kg8 $18) 26... Rd8 {[%emt 0:00:26]} 27. Re2 {[%emt 0:00:10]} ({But not} 27. Qxh7 $2 Rh8 28. Qxh8 Nxh8 $19) 27... d3 {[%emt 0:00:07]} 28. Re3 {[%emt 0:00:03]} d2 {[%emt 0:00:17]} 29. Rd1 {[%emt 0:00:02]} Qa4 {[%emt 0:00:39]} 30. b3 {[%emt 0:00:08]} Qxa2 {[%emt 0:00:14]} 31. Qf5 {[%emt 0:00:28] Prevents Qc2.} ({Avoid the trap} 31. Qxh7 $2 Rh8 32. Re7+ Nxe7 $19) (31. f4 $142) 31... Bf8 $2 {[%emt 0:01:38]} (31... Bh6) 32. h4 {[%emt 0:01:14] White is clearly winning.} Bh6 {[%emt 0:02:30]} 33. Re6 {[%emt 0:02:03]} Bg7 {[%emt 0:00:59]} 34. Rd6 {[%emt 0:00:02]} Rxd6 {[%emt 0:00:56]} 35. Bxd6 {[%emt 0:00:02] [#] Intending Qd7+ and mate.} Ne7 {[%emt 0:02:01]} 36. Qe4 {[%emt 0:00:50]} Bf8 {[%emt 0:00:33]} 37. Qxh7+ {[%emt 0:00:06]} Ke6 {[%emt 0:00:02]} 38. Bxe7 {[%emt 0:00:05]} Bxe7 {[%emt 0:00:05]} 39. Qe4+ {[%emt 0:00:01] Weighted Error Value: White=0.23 (precise) /Black=0.45} 1-0

[Event "Czech Open-Rapid 2022"]
[Site "Pardubice"]
[Date "2022.07.20"]
[Round "2.6"]
[White "Malinovsky, Petr"]
[Black "Stocek, Jiri"]
[Result "0-1"]
[ECO "A58"]
[WhiteElo "1959"]
[BlackElo "2548"]
[Annotator "TA"]
[PlyCount "70"]
[EventDate "2022.07.20"]
[EventType "swiss"]
[EventCountry "CZE"]
[SourceTitle "playchess.com"]
[Source "ChessBase"]
[SourceQuality "1"]
[TimeControl "1200+10"]

{[%evp 9,70,18,47,47,58,43,41,44,37,32,23,8,27,16,10,0,0,-5,0,-14,0,-17,0,-106,-97,-137,-109,-166,-163,-157,-164,-156,-159,-158,-161,-164,-164,-200,-199,-287,-190,-317,-311,-292,-247,-292,-280,-261,-230,-231,-240,-228,-116,-287,-279,-556,-556,-664,-543,-525,-509,-684,-662]} 1. d4 {[%emt 0:00:03]} Nf6 {[%emt 0:00:02]} 2. c4 {[%emt 0:00:02][%cal Bc2c4,Bc4b5,Bb5a6][%mdl 32]} c5 {[%emt 0:00:08]} 3. d5 {[%emt 0:00:04]} b5 {[%emt 0:00:03]} 4. cxb5 {[%emt 0:00:06]} a6 {[%emt 0:00:02]} 5. bxa6 {[%emt 0:00:02]} g6 {[%emt 0:00:02]} 6. Nc3 {[%emt 0:00:02] A58: Benko/Volga Gambit: Lines with 5 bxa6.} Bg7 {[%emt 0:00:04]} 7. e4 {[%emt 0:00:06]} O-O {[%emt 0:00:04]} 8. Nf3 {[%emt 0:00:17] White is slightly better.} Qa5 {[%emt 0:00:10]} 9. Bd2 {[%emt 0:00:26]} Bxa6 {[%emt 0:00:41]} 10. Bxa6 {[%emt 0:01:01]} Qxa6 {[%emt 0:00:02]} 11. Qe2 {[%emt 0:00:29]} e6 {[%emt 0:00:14] 11...d6 injects fresh life into this line.} 12. Qxa6 {[%emt 0:01:23]} Nxa6 {[%emt 0:00:04][%cal Bb8a6,Ba6b4,Bb4d3][%mdl 32]} 13. O-O {[%emt 0:01:16]} Rfb8 {[%emt 0:02:18]} 14. Rab1 {[%emt 0:01:20]} Nb4 {[%emt 0:00:41][%mdl 1024] Black has compensation.} 15. Bf4 {[%emt 0:01:25]} Rb7 {[%emt 0:00:10] [#]} 16. a3 $146 {[%emt 0:00:48]} (16. dxe6 $11 {keeps the balance.} fxe6 17. Be3) ({Predecessor:} 16. Bd6 Nxa2 17. dxe6 dxe6 18. e5 Nxc3 19. bxc3 Rxb1 20. Rxb1 Ne4 21. c4 Nc3 22. Rb8+ Rxb8 23. Bxb8 {1-0 (61) Atakhan,A (2357)-Bettalli,F (2317) Chess.com INT 2022}) 16... Nd3 $17 {[%emt 0:00:21]} 17. Bc1 {[%emt 0:01:04]} Ng4 {[%emt 0:01:15][%cal Bf6g4,Bg4f2,Bf2e4,Be4c3,Bc3d5][%mdl 32] And now ...Bxc3 would win.} 18. h3 {[%emt 0:03:05] [#]} (18. Bd2 $17) 18... Ngxf2 $1 $19 {[%emt 0:00:49]} 19. Be3 {[%emt 0:00:17]} Bxc3 {[%emt 0:01:02] Black is much more active.} ({Not} 19... Rxb2 20. Rxb2 Nxb2 21. Bxf2 $17) 20. bxc3 {[%emt 0:02:23]} Rxb1 {[%emt 0:00:05]} 21. Rxb1 {[%emt 0:00:03]} Nxe4 {[%emt 0:00:04]} 22. dxe6 {[%emt 0:00:56]} dxe6 {[%emt 0:00:14]} ({Stronger than} 22... fxe6 23. Rb7 $17) 23. Rb7 {[%emt 0:00:10]} Nxc3 {[%emt 0:01:09] Pair of Knights!} 24. Ng5 {[%emt 0:00:37]} (24. Bh6 {might work better.}) 24... Rf8 {[%emt 0:03:22]} ({Weaker is} 24... Rxa3 25. Nxf7 Ne4 26. Nd8 $17) 25. Rd7 {[%emt 0:01:42]} (25. Bd2 $142 Nd5 26. Ne4) 25... Nd5 {[%emt 0:00:28]} 26. Bd2 {[%emt 0:00:30]} Ne5 {[%emt 0:00:18]} 27. Rb7 {[%emt 0:01:19]} c4 {[%emt 0:00:39][%cal Bc5c4,Bc4c3,Bc3c2][%mdl 32]} 28. Ne4 {[%emt 0:00:02] Inhibits c3.} h5 {[%emt 0:01:40] Strongly threatening ...Ra8.} 29. a4 {[%emt 0:00:03]} Rc8 {[%emt 0:00:16] Threatens to win with ...c3.} 30. Nc3 {[%emt 0:00:22] [#]} Nc6 {[%emt 0:00:29]} (30... Nd3 $1 $19 {[%cal Rd3c5] aiming for ...Nc5.} 31. a5 Nc5) 31. Nb5 $2 {[%emt 0:00:46] Loses the game.} (31. a5 $17 {was necessary.}) 31... Ra8 {[%emt 0:01:28]} 32. Nd6 $2 {[%emt 0:00:19]} (32. Nc3 {was the only defense.}) 32... c3 {[%emt 0:00:14] Black is clearly winning.} 33. Bg5 {[%emt 0:00:55]} Ne5 {[%emt 0:00:45] White must now prevent ...f6.} 34. Ne4 {[%emt 0:00:43]} c2 {[%emt 0:00:25]} 35. Rb2 {[%emt 0:00:43]} Rxa4 {[%emt 0:00:22] Weighted Error Value: White=0.46/Black=0.18 (very precise)} 0-1

[Event "Czech Open-Rapid 2022"]
[Site "Pardubice"]
[Date "2022.07.20"]
[Round "2.7"]
[White "Pulpan, Jakub"]
[Black "Kotva, Milan"]
[Result "1-0"]
[ECO "A01"]
[WhiteElo "2424"]
[BlackElo "1833"]
[Annotator "TA"]
[PlyCount "47"]
[EventDate "2022.07.20"]
[EventType "swiss"]
[EventCountry "CZE"]
[SourceTitle "playchess.com"]
[Source "ChessBase"]
[SourceQuality "1"]
[TimeControl "1200+10"]

{[%evp 16,47,10,0,35,0,18,0,14,9,5,0,23,-34,27,34,42,39,31,37,52,42,204,196,219,225,231,217,540,526,525,537,895,863]} 1. b3 {[%emt 0:00:06]} d5 {[%emt 0:00:04]} 2. Bb2 {[%emt 0:00:03]} Bf5 {[%emt 0:00:11]} 3. Nf3 {[%emt 0:00:07]} e6 {[%emt 0:00:04]} 4. g3 {[%emt 0:00:02]} Nd7 {[%emt 0:00:07]} 5. Bg2 {[%emt 0:00:03]} Ngf6 {[%emt 0:00:01]} 6. O-O {[%emt 0:00:05]} Be7 {[%emt 0:00:12]} 7. c4 {[%emt 0:00:07]} c6 {[%emt 0:00:02]} 8. d3 {[%emt 0:00:05]} O-O {[%emt 0:00:07]} 9. Nbd2 {[%emt 0:00:03]} Qb6 {[%emt 0:00:22] A12: English Opening: 1...c6 with b3 by White.} 10. Qc2 {[%emt 0:00:16]} a5 {[%emt 0:00:16]} 11. a3 {[%emt 0:00:07]} Bg6 {[#] The position is equal.} 12. Bc3 $146 {[%emt 0:00:36]} ({Predecessor:} 12. h3 Rfd8 13. Nh4 Bh5 14. g4 Ne8 15. Ndf3 Bg6 16. Nxg6 hxg6 17. Bc3 Bf6 18. Rab1 {1-0 (47) Schuh,H (2292)-Toedter,C (1956) Baden 2019}) 12... Rfe8 {[%emt 0:01:23]} 13. Qb2 {[%emt 0:00:23]} Rac8 {[%emt 0:00:27]} 14. h3 {[%emt 0:01:09]} (14. b4 $11) 14... Bf8 {[%emt 0:00:09]} ({Black should play} 14... c5 $15) 15. Nh4 $11 {[%emt 0:00:32]} e5 {[%emt 0:00:30] [#] Hoping for ...d4.} 16. Nxg6 {[%emt 0:00:15]} hxg6 {[%emt 0:00:04]} 17. e3 {[%emt 0:00:47] Inhibits d4.} Bd6 {[%emt 0:02:43]} 18. d4 {[%emt 0:01:19]} e4 $2 {[%emt 0:00:23] A mistake that costs the game.} (18... exd4 $14 19. exd4 (19. Bxd4 Be5 $11) 19... Bb4) 19. c5 $18 {[%emt 0:00:02]} Bxc5 {[%emt 0:01:13]} 20. dxc5 {[%emt 0:00:02]} Nxc5 {[%emt 0:00:01]} 21. Bxf6 {[%emt 0:00:08]} Nd3 $2 {[%emt 0:00:09]} (21... gxf6 {is tougher.} 22. Qxf6 Nd3) 22. Qd4 {[%emt 0:00:10] White is clearly winning.} c5 {[%emt 0:00:18] [#]} 23. Qxd5 {[%emt 0:00:08]} Qxf6 {[%emt 0:00:11]} (23... gxf6 24. Bxe4) 24. Nxe4 {[%emt 0:00:03] Weighted Error Value: White=0.13 (very precise) /Black=0.78} 1-0

[Event "Czech Open-Rapid 2022"]
[Site "Pardubice"]
[Date "2022.07.20"]
[Round "2.8"]
[White "Kavalir, Jan"]
[Black "Jirovsky, Milos"]
[Result "0-1"]
[ECO "B01"]
[WhiteElo "1987"]
[BlackElo "2458"]
[Annotator "TA"]
[PlyCount "126"]
[EventDate "2022.07.20"]
[EventType "swiss"]
[EventCountry "CZE"]
[SourceTitle "playchess.com"]
[Source "ChessBase"]
[SourceQuality "1"]
[TimeControl "1200+10"]

{[%evp 9,126,38,56,33,35,32,31,36,43,27,20,26,20,30,19,8,16,-85,-82,-142,-97,-105,-90,-100,-37,-70,-70,-61,-66,-81,-85,-94,-86,-114,-74,-128,-137,-146,-135,-196,-153,-181,-187,-194,-179,-188,-188,-190,-176,-181,-189,-198,-110,-108,-28,-68,-57,-45,-51,-50,0,-8,-5,-28,27,0,0,0,11,0,0,-35,-32,-36,-30,-20,-16,-29,-31,-685,-859,-580,-711,-815,-795,-759,-714,-1456,-1435,-1713,-1626,-1392,-1371,-1204,-1056,-6111,-5089,-29977,-29978,-29978,-29979,-29979,-29977,-29980,-29981,-29981,-29982,-29982,-29983,-29984,-29985,-29985,-29985,-29986,-29987,-29987,-29988,-29988,-29989]} 1. e4 {[%emt 0:00:00]} d5 {[%emt 0:00:03]} 2. exd5 {[%emt 0:00:12]} Qxd5 {[%emt 0:00:02]} 3. Nc3 {[%emt 0:00:07]} Qd6 {[%emt 0:00:01]} 4. d4 {[%emt 0:00:02]} Nf6 {[%emt 0:00:01]} 5. Nf3 {[%emt 0:00:01]} c6 {[%emt 0:00:04]} 6. Bd3 {[%emt 0:00:28] B01: Scandinavian Defence.} Bg4 {[%emt 0:00:06]} 7. Be3 {[%emt 0:00:09]} Nbd7 {[%emt 0:00:03]} 8. h3 {[%emt 0:00:12] White is slightly better.} Bh5 {[%emt 0:00:01]} 9. g4 {[%emt 0:01:41]} Bg6 {[%emt 0:00:02]} 10. Qd2 {[%emt 0:00:29]} e6 {[%emt 0:00:11] [#]} 11. Bf4 $146 {[%emt 0:00:22]} ({Predecessor:} 11. O-O-O Qc7 12. Nh4 Bxd3 13. Qxd3 O-O-O 14. f4 Bb4 15. Rhf1 Qa5 16. a3 Bxc3 17. Qxc3 Qxc3 18. bxc3 {0-1 (46) Liubavsky,G (1793)-Nureev,G (2349) Gelendzhik 2016}) 11... Qb4 {[%emt 0:00:02]} 12. O-O-O {[%emt 0:00:37]} Qa5 {[%emt 0:00:11]} 13. Kb1 {[%emt 0:00:07]} (13. Ne5 $11) 13... Bb4 $17 {[%emt 0:00:22]} 14. Qe1 {[%emt 0:00:38]} (14. Bxg6 $142 hxg6 15. Qd3) 14... Nd5 {[%emt 0:00:13][%cal Rd5c3]} 15. Bd2 {[%emt 0:00:08]} Bxd3 {[%emt 0:00:21]} 16. cxd3 {[%emt 0:00:52]} N7b6 {[%emt 0:01:32]} ({Better is} 16... Bxc3 $17 17. bxc3 Qb5+ 18. Kc2 Qa4+ 19. Kb2 b5) 17. Ne5 {[%emt 0:00:25]} Bxc3 {[%emt 0:04:38]} 18. Bxc3 {[%emt 0:00:10]} Qb5 {[%emt 0:00:30]} 19. Ba5 {[%emt 0:00:59]} O-O $40 {[%emt 0:02:16][%mdl 128] Black wants a kill.} 20. Rc1 {[%emt 0:00:53]} Nf4 {[%emt 0:02:32] Pair of Knights!} (20... Na4 $6 21. b3 $11) 21. Qd2 {[%emt 0:02:40]} Nbd5 {[%emt 0:00:27]} 22. Nc4 {[%emt 0:01:01]} ({White should play} 22. Rc5 Qa6 23. Bc7 Nxc7 24. Qxf4) 22... b6 {[%emt 0:00:34]} 23. Bc3 {[%emt 0:00:07] [#]} Rfd8 $1 {[%emt 0:00:06] Black is more active.} 24. Rhd1 {[%emt 0:00:59]} (24. Ka1 $17) 24... Rac8 {[%emt 0:00:06]} 25. Ne3 {[%emt 0:01:41]} Nxc3+ {[%emt 0:00:28]} ({Inferior is} 25... Nxh3 26. Nxd5 Qxd5 27. Qe3 $17) 26. Rxc3 {[%emt 0:00:05]} Nxh3 {[%emt 0:02:14]} (26... Rxd4 27. Nc2 Ra4 28. Rc4 $17) 27. Nc2 {[%emt 0:02:08]} Qg5 {[%emt 0:00:11]} 28. Nb4 {[%emt 0:01:04]} c5 {[%emt 0:01:07]} ({Worse is} 28... Qxg4 29. Nxc6 Rxc6 30. Rxc6 $15) ({Don't take} 28... Rxd4 29. Qxg5 Nxg5 30. Nxc6 Rxc6 31. Rxc6 $16) 29. Qxg5 {[%emt 0:00:27]} Nxg5 {[%emt 0:00:01]} 30. dxc5 {[%emt 0:00:10]} bxc5 {[%emt 0:00:10]} (30... Ne4 $1 $19 {[%cal Re4c3]} 31. Rc2 bxc5) 31. Rdc1 {[%emt 0:00:16]} a5 {[%emt 0:01:05]} (31... Rd4 $17 32. Rxc5 Rxc5 33. Rxc5 {[#]} g6 $1 34. Rxg5 Rxb4) 32. Na6 {[%emt 0:00:35]} Ra8 {[%emt 0:00:07]} 33. Nxc5 {[%emt 0:00:16]} Nf3 {[%emt 0:00:05]} 34. Nb7 {[%emt 0:00:56]} Rdb8 {[%emt 0:00:07] ...h5 is the strong threat.} 35. Nxa5 $1 {[%emt 0:00:52] Strongly threatening Nc6.} Nd2+ {[%emt 0:00:25]} 36. Ka1 {[%emt 0:00:01][%cal Oc1c2] Black must now prevent R1c2!} h5 {[%emt 0:00:02]} (36... f5 $142 $1 37. Nc6 Nb3+ 38. Kb1 Nxc1 39. Nxb8 Rxb8 40. Rxc1 fxg4) 37. R1c2 {[%emt 0:01:11] Hoping for Nc6.} (37. Rc5 $5 {[%cal Rg4h5]}) 37... Rxa5 {[%emt 0:00:10]} 38. Rxd2 {[%emt 0:00:01]} hxg4 $11 {[%emt 0:00:01][%mdl 4096] Endgame KRR-KRR} 39. Rc4 {[%emt 0:00:15]} f5 $1 {[%emt 0:00:06]} 40. d4 {[%emt 0:00:50]} Kf7 {[%emt 0:00:04]} 41. Rc5 {[%emt 0:00:09]} Ra6 {[%emt 0:01:12]} 42. d5 {[%emt 0:00:27]} exd5 {[%emt 0:00:06]} 43. Rcxd5 {[%emt 0:00:10]} Kf6 {[%emt 0:00:15]} 44. Rd6+ $2 {[%emt 0:00:02][%mdl 8192] White does not recover from this.} (44. Kb1 $15) 44... Rxd6 $19 {[%emt 0:00:00]} 45. Rxd6+ {[%emt 0:00:01] KR-KR} Ke5 {[%emt 0:00:02]} 46. Rd7 {[%emt 0:00:02]} g5 {[%emt 0:00:05] Threatens to win with ...f4.} 47. a4 {[%emt 0:00:38]} Rb4 {[%emt 0:00:15]} 48. Ra7 {[%emt 0:00:05]} f4 {[%emt 0:00:02] aiming for ...g3.} 49. Ra5+ {[%emt 0:00:36]} Kf6 {[%emt 0:00:01]} 50. Ra6+ {[%emt 0:00:14]} Kf5 {[%emt 0:00:03]} 51. Ra5+ {[%emt 0:00:05]} Kg6 {[%emt 0:00:01]} 52. Ra6+ {[%emt 0:00:01]} Kh5 {[%emt 0:00:02] ( -> ...g3)} 53. Rf6 {[%emt 0:01:11]} g3 {[%emt 0:00:10] Black mates.} 54. fxg3 {[%emt 0:00:02]} fxg3 {[%emt 0:00:01]} 55. Rf1 {[%emt 0:00:02]} Kg4 {[%emt 0:00:12]} 56. Ka2 {[%emt 0:00:05]} Rxa4+ 57. Kb3 {[%emt 0:00:02]} Rf4 {[%emt 0:00:08]} 58. Rg1 {[%emt 0:01:01]} Kf3 {[%emt 0:00:01]} 59. Kc3 {[%emt 0:00:07]} Kf2 {[%emt 0:00:03]} 60. Rd1 {[%emt 0:00:07]} g2 {[%emt 0:00:01]} 61. Rd2+ {[%emt 0:00:03]} Kg3 {[%emt 0:00:01]} 62. Rd1 {[%emt 0:00:13]} Rf1 {[%emt 0:00:04]} 63. Rd3+ {[%emt 0:00:05]} Rf3 {[%emt 0:00:01] Weighted Error Value: White=0.54/Black=0.11 (very precise)} 0-1